bitfinex/quotes_SOLUSD_20250321
["timestamp","ask_amount","ask_price","bid_price","bid_amount"]
[1742544388267,14.50032685,128.62,128.61,0.063]
[1742544395470,22.27512685,128.62,128.61,0.063]
[1742544397788,22.41680046,128.62,128.61,0.063]
[1742544398092,41.35077246,128.62,128.61,0.063]
[1742544398294,60.78787246,128.62,128.55,7.7787]
[1742544398467,14.50032685,128.57,128.55,7.7787]
[1742544399784,14.50032685,128.58,128.55,7.7787]
[1742544403380,14.50032685,128.61,128.56,14.78464999]
[1742544403585,14.64200046,128.62,128.57,14.50032685]
[1742544404275,14.64200046,128.62,128.58,14.50032685]
[1742544404470,0.14167361,128.62,128.58,21.14032685]
[1742544404671,0.14167361,128.62,128.59,14.50032685]
[1742544405184,0.14167361,128.62,128.6,7.776]
[1742544408700,14.64200046,128.62,128.59,7.7766]
[1742544409494,0.14167361,128.62,128.59,7.7766]
[1742544411291,14.64200046,128.62,128.59,7.7766]
[1742544411472,0.14167361,128.62,128.59,7.7766]
[1742544412679,14.64200046,128.62,128.59,7.7766]
[1742544413494,14.64200046,128.62,128.58,14.417]
[1742544414306,0.14167361,128.62,128.58,28.91732685]
[1742544414596,0.14167361,128.62,128.59,14.50032685]
[1742544416905,0.14167361,128.62,128.6,7.776]
[1742544417276,14.50032685,128.63,128.6,7.776]
[1742544417697,0.15074222,128.61,128.6,7.776]
[1742544418111,0.15074222,128.61,128.59,7.7766]
[1742544418894,0.15074222,128.61,128.59,22.27692685]
[1742544419101,0.15074222,128.61,128.59,42.27692685]
[1742544419276,0.15074222,128.61,128.6,14.78464999]
[1742544420487,0.15074222,128.61,128.6,22.56064999]
[1742544421090,4.222e-05,128.61,128.6,43.02862199]
[1742544421297,2.306e-05,128.62,128.61,38.933972]
[1742544421600,2.306e-05,128.62,128.61,53.71862199]
[1742544422387,4.81e-06,128.64,128.63,59.21829514]
[1742544422590,1.208e-05,128.67,128.66,0.28432314]
[1742544422793,1.088e-05,128.69,128.67,38.933972]
[1742544422990,1.088e-05,128.69,128.68,40.35862199]
[1742544424193,1.088e-05,128.69,128.68,48.12982199]
[1742544424991,1.017e-05,128.7,128.69,39.21829514]
[1742544425303,1.017e-05,128.7,128.69,134.91862199]
[1742544426114,1.017e-05,128.7,128.69,142.68922199]
[1742544427606,1.017e-05,128.7,128.69,61.48922199]
[1742544430512,1.017e-05,128.7,128.69,142.68922199]
[1742544430794,0.03001017,128.7,128.69,142.68922199]
[1742544437219,0.03,128.7,128.69,142.68922199]
[1742544437921,0.19130507,128.7,128.69,142.68922199]
[1742544439609,5.07e-06,128.7,128.69,142.68922199]
[1742544441508,5.07e-06,128.7,128.69,61.20489885]
[1742544442101,5.07e-06,128.7,128.69,61.48922199]
[1742544442507,5.07e-06,128.7,128.69,67.84489885]
[1742544442817,5.07e-06,128.7,128.69,20.34732314]
[1742544443014,0.03000507,128.7,128.69,26.98732314]
[1742544443211,0.03000507,128.7,128.69,34.75792314]
[1742544443515,0.03000507,128.7,128.69,49.25824999]
[1742544446421,0.03000507,128.7,128.69,34.75792314]
[1742544446626,0.03000507,128.7,128.69,26.98732314]
[1742544447521,0.03000507,128.7,128.69,26.84516157]
[1742544448333,0.03000507,128.7,128.69,34.61576157]
[1742544449126,0.03000507,128.7,128.69,26.84516157]
[1742544449926,0.03000507,128.7,128.69,34.61576157]
[1742544454311,0.03000507,128.7,128.69,49.25824999]
[1742544454616,0.03000507,128.7,128.69,68.19222199]
[1742544455811,5.07e-06,128.7,128.69,68.19222199]
[1742544456536,2.196e-05,128.71,128.7,19.21829514]
[1742544456832,2.196e-05,128.71,128.7,33.71862199]
[1742544457230,0.03,128.75,128.74,0.14216157]
[1742544457427,0.03,128.75,128.74,6.78216157]
[1742544457736,0.19924812,128.75,128.74,6.78216157]
[1742544458215,0.19924812,128.75,128.74,21.28248842]
[1742544458414,0.19924812,128.75,128.74,14.54966157]
[1742544458629,0.19924812,128.75,128.74,14.4075]
[1742544458815,0.19924812,128.75,128.74,14.54966157]
[1742544460441,0.19924812,128.75,128.74,29.19214999]
[1742544461318,0.19924812,128.75,128.74,14.69182314]
[1742544462436,0.19924812,128.75,128.74,48.12612199]
[1742544464517,0.19924812,128.75,128.74,51.95246148]
[1742544474232,0.19924812,128.75,128.74,133.15246148]
[1742544475441,4.812e-05,128.75,128.74,133.15246148]
[1742544477244,0.03,128.78,128.77,20.14216157]
[1742544477641,0.1864452,128.78,128.77,20.14216157]
[1742544480349,0.1864452,128.78,128.77,42.40818842]
[1742544480546,0.1864452,128.78,128.77,61.48432199]
[1742544483051,0.1864452,128.78,128.77,46.98399514]
[1742544483349,0.1864452,128.78,128.77,61.48432199]
[1742544486246,4.52e-05,128.78,128.77,61.48432199]
[1742544486948,9.421e-05,128.79,128.78,19.21829514]
[1742544487146,9.421e-05,128.79,128.78,40.35862199]
[1742544488857,9.421e-05,128.79,128.78,48.12372199]
[1742544490054,9.421e-05,128.79,128.78,129.32372199]
[1742544497062,0.03009421,128.79,128.78,129.32372199]
[1742544497359,0.03,128.79,128.78,129.32372199]
[1742544497547,0.03,128.83,128.82,20.28432314]
[1742544497757,0.18296411,128.83,128.82,41.42464999]
[1742544497943,0.18296411,128.83,128.82,26.92432314]
[1742544498358,0.18296411,128.83,128.82,26.78216157]
[1742544499152,0.18296411,128.83,128.82,34.54486157]
[1742544502969,0.18296411,128.83,128.82,26.64]
[1742544503277,0.18296411,128.83,128.81,6.64]
[1742544503454,0.18296411,128.83,128.8,42.26412685]
[1742544503653,0.18296411,128.83,128.81,6.64]
[1742544503947,0.18296411,128.83,128.82,34.78464999]
[1742544504863,0.18296411,128.83,128.82,53.71862199]
[1742544505047,0.18296411,128.83,128.82,134.91862199]
[1742544505263,6.411e-05,128.83,128.82,134.91862199]
[1742544505976,6.411e-05,128.83,128.82,142.68132199]
[1742544506155,6.411e-05,128.83,128.82,144.23300787]
[1742544507874,5.093e-05,128.85,128.84,20.28432314]
[1742544508087,2.411e-05,128.87,128.86,59.21829514]
[1742544508262,2.411e-05,128.87,128.86,138.35992939]
[1742544508465,8.1024,128.96,128.93,20.0]
[1742544508665,8.1024,128.96,128.93,41.14032685]
[1742544508869,8.0724,128.96,128.93,41.14032685]
[1742544509072,1.5498,128.96,128.94,14.64248842]
[1742544509269,30.20972685,128.99,128.95,20.0]
[1742544509778,14.50032685,128.98,128.95,20.0]
[1742544510160,14.50032685,128.97,128.94,0.14216157]
[1742544510462,15.7094,128.99,128.95,20.0]
[1742544510675,14.50032685,128.98,128.95,20.0]
[1742544511280,0.03,128.96,128.95,20.0]
[1742544512261,0.03,128.96,128.95,20.14216157]
[1742544512691,14.50032685,128.98,128.95,20.14216157]
[1742544512876,22.25342685,128.98,128.95,20.14216157]
[1742544513786,22.25342685,128.98,128.95,20.0]
[1742544514773,14.50032685,128.97,128.95,20.0]
[1742544516386,22.25442685,128.97,128.95,20.0]
[1742544516682,22.25442685,128.97,128.94,0.14216157]
[1742544517667,0.14493721,128.95,128.94,0.14216157]
[1742544520780,0.14493721,128.95,128.93,26.64]
[1742544521594,0.14493721,128.95,128.94,0.14216157]
[1742544522189,22.40036406,128.95,128.94,6.64]
[1742544522373,22.40036406,128.95,128.92,6.64]
[1742544522692,14.50032685,128.94,128.92,6.64]
[1742544523391,22.25612685,128.94,128.92,6.64]
[1742544523772,14.50032685,128.93,128.9,0.14216157]
[1742544524082,14.50032685,128.92,128.9,6.78216157]
[1742544524479,14.50032685,128.93,128.9,6.78216157]
[1742544525195,14.50032685,128.91,128.9,6.64]
[1742544525485,14.50032685,128.92,128.9,6.64]
[1742544527710,22.25752685,128.92,128.9,6.64]
[1742544527899,14.50032685,128.91,128.9,6.64]
[1742544528797,14.50032685,128.92,128.9,6.64]
[1742544528997,22.25702685,128.92,128.9,6.64]
[1742544530693,14.50032685,128.91,128.9,6.64]
[1742544531192,22.25702685,128.92,128.9,6.64]
[1742544533507,14.50032685,128.92,128.9,6.64]
[1742544533692,23.83802685,128.94,128.9,26.64]
[1742544533894,14.50032685,128.93,128.9,26.64]
[1742544534407,14.50032685,128.92,128.9,6.64]
[1742544536899,22.25722685,128.92,128.9,6.64]
[1742544537703,0.14766413,128.91,128.9,6.64]
[1742544539108,0.14766413,128.91,128.9,14.3979]
[1742544539801,0.14766413,128.91,128.9,6.64]
[1742544541204,14.64799098,128.91,128.9,6.64]
[1742544542510,14.64799098,128.91,128.85,7.90306157]
[1742544542511,7.8485,128.9,128.85,7.90306157]
[1742544542799,7.8485,128.9,128.84,26.78216157]
[1742544542800,14.50032685,128.87,128.84,26.64]
[1742544543004,14.50032685,128.85,128.82,20.0]
[1742544543185,14.50032685,128.85,128.82,26.64]
[1742544543390,14.50032685,128.83,128.82,6.64]
[1742544543802,14.50032685,128.83,128.79,6.78216157]
[1742544544007,14.50032685,128.82,128.79,6.78216157]
[1742544544802,1.5181,128.84,128.78,20.063]
[1742544544803,14.50032685,128.81,128.78,20.063]
[1742544544996,14.50032685,128.8,128.78,26.703]
[1742544545502,14.50032685,128.81,128.78,26.703]
[1742544545703,14.50032685,128.8,128.78,6.703]
[1742544546294,14.50032685,128.8,128.78,0.063]
[1742544546503,14.50032685,128.79,128.78,0.063]
[1742544547282,14.50032685,128.8,128.78,0.063]
[1742544549001,14.50032685,128.81,128.78,0.063]
[1742544550115,7.6089,128.84,128.78,0.063]
[1742544550299,14.50032685,128.81,128.78,0.063]
[1742544550704,14.50032685,128.83,128.78,34.56332685]
[1742544551203,14.50032685,128.83,128.79,7.7645]
[1742544553409,14.50032685,128.84,128.8,6.64]
[1742544555409,7.7603,128.86,128.8,14.4036]
[1742544555590,14.50032685,128.84,128.8,14.4036]
[1742544556611,14.50032685,128.84,128.8,34.4036]
[1742544556809,14.50032685,128.85,128.8,48.90392685]
[1742544557408,14.50032685,128.86,128.81,14.64248842]
[1742544557791,0.14042198,128.83,128.82,20.14216157]
[1742544558001,0.14042198,128.83,128.82,34.78464999]
[1742544558807,0.14042198,128.83,128.82,42.54734999]
[1742544561388,0.14042198,128.83,128.82,27.90486157]
[1742544563904,0.14042198,128.83,128.82,42.40518842]
[1742544565505,0.14042198,128.83,128.82,27.90486157]
[1742544565716,0.14042198,128.83,128.82,28.04702314]
[1742544565916,0.14042198,128.83,128.82,42.54734999]
[1742544567494,0.14042198,128.83,128.82,27.90486157]
[1742544568295,0.14042198,128.83,128.82,42.40518842]
[1742544568491,0.14042198,128.83,128.82,42.54734999]
[1742544572814,0.14042198,128.83,128.82,27.90486157]
[1742544573209,0.14042198,128.83,128.82,42.40518842]
[1742544573610,0.14042198,128.83,128.82,42.54734999]
[1742544574206,0.14042198,128.83,128.82,42.40518842]
[1742544574612,0.14042198,128.83,128.82,27.90486157]
[1742544574806,0.14042198,128.83,128.82,20.0]
[1742544575006,0.14042198,128.83,128.81,7.826]
[1742544575422,0.14042198,128.83,128.81,0.20516157]
[1742544575819,0.14042198,128.83,128.81,6.84516157]
[1742544576020,0.14042198,128.83,128.81,0.063]
[1742544576320,14.50032685,128.82,128.81,0.063]
[1742544576530,22.57622685,128.82,128.81,0.063]
[1742544576825,30.33892685,128.82,128.81,0.063]
[1742544577021,107.74713425,128.82,128.78,0.063]
[1742544577207,22.4923945,128.79,128.78,0.063]
[1742544577814,22.64313766,128.79,128.78,0.063]
[1742544578715,0.15074316,128.79,128.78,0.063]
[1742544579317,0.15074316,128.79,128.78,6.703]
[1742544579626,0.15074316,128.79,128.78,29.1953945]
[1742544579825,0.15074316,128.79,128.78,6.703]
[1742544581128,0.15074316,128.79,128.78,14.4681]
[1742544583932,0.15074316,128.79,128.78,14.61026157]
[1742544584131,0.15074316,128.79,128.78,6.84516157]
[1742544586122,7.91524316,128.79,128.78,0.063]
[1742544586438,30.40763766,128.79,128.78,0.063]
[1742544587631,22.64313766,128.79,128.78,0.063]
[1742544588335,30.40763766,128.79,128.78,0.063]
[1742544589834,7.91524316,128.79,128.78,0.063]
[1742544590534,0.15074316,128.79,128.78,0.063]
[1742544594835,30.40763766,128.79,128.78,0.063]
[1742544595036,22.64313766,128.79,128.78,0.063]
[1742544595416,0.15074316,128.79,128.78,0.063]
[1742544596935,0.15074316,128.79,128.78,7.8281]
[1742544597337,0.03,128.81,128.78,7.8281]
[1742544597837,0.14088476,128.79,128.78,7.8281]
[1742544598514,0.14088476,128.79,128.78,61.42991501]
[1742544600115,8.476e-05,128.79,128.78,61.42991501]
[1742544600620,5.791e-05,128.8,128.79,0.28432314]
[1742544600821,5.791e-05,128.8,128.79,33.60181501]
[1742544601020,2.013e-05,128.82,128.81,0.28432314]
[1742544601336,2.013e-05,128.82,128.81,29.07114301]
[1742544602531,2.013e-05,128.82,128.81,48.00511501]
[1742544603736,2.013e-05,128.82,128.81,29.07114301]
[1742544606111,2.013e-05,128.82,128.81,6.78216157]
[1742544607628,2.013e-05,128.82,128.81,0.14216157]
[1742544608437,2.013e-05,128.82,128.79,22.28988144]
[1742544608749,2.013e-05,128.82,128.8,6.78216157]
[1742544609540,2.013e-05,128.82,128.8,21.16568144]
[1742544609731,2.013e-05,128.82,128.81,7.7633]
[1742544609917,2.013e-05,128.82,128.8,6.78216157]
[1742544610118,2.013e-05,128.82,128.8,6.64]
[1742544610320,14.38354,128.82,128.8,6.64]
[1742544611119,14.38354,128.82,128.78,239.80868144]
[1742544611320,14.38354,128.82,128.79,6.64]
[1742544612425,22.14634,128.82,128.79,6.64]
[1742544612630,22.14634,128.82,128.78,27.97006157]
[1742544612827,22.14634,128.82,128.78,34.61006157]
[1742544614744,14.38354,128.82,128.78,48.99358144]
[1742544615230,2.013e-05,128.82,128.78,48.99358144]
[1742544616854,14.38354,128.82,128.78,48.99358144]
[1742544617242,14.38351987,128.82,128.78,48.99358144]
[1742544617537,22.14631987,128.82,128.78,48.99358144]
[1742544617721,0.14557178,128.79,128.78,6.84516157]
[1742544618230,0.14557178,128.79,128.78,21.22868144]
[1742544618829,0.14557178,128.79,128.78,28.99378144]
[1742544619024,0.14557178,128.79,128.78,21.22868144]
[1742544620137,0.14557178,128.79,128.78,6.84516157]
[1742544620344,0.14557178,128.79,128.78,0.063]
[1742544623037,7.91007178,128.79,128.78,0.063]
[1742544623241,0.14557178,128.79,128.78,0.063]
[1742544626453,14.52909165,128.79,128.78,0.063]
[1742544629453,0.14557178,128.79,128.78,0.063]
[1742544629949,14.52909165,128.79,128.78,0.063]
[1742544630150,22.29359165,128.79,128.78,0.063]
[1742544633835,166.53479165,128.79,128.78,0.063]
[1742544634242,166.81911479,128.79,128.78,0.0001]
[1742544634441,20.0,128.76,128.75,0.063]
[1742544634750,34.38351987,128.76,128.75,0.063]
[1742544635954,42.14981987,128.76,128.75,0.063]
[1742544636645,178.24981987,128.76,128.75,0.063]
[1742544637957,178.41826163,128.76,128.75,0.063]
[1742544641863,156.26844176,128.76,128.75,0.063]
[1742544642350,170.65196163,128.76,128.75,0.063]
[1742544645647,150.65196163,128.76,128.75,0.063]
[1742544647259,14.55196163,128.76,128.75,0.063]
[1742544647654,22.31826163,128.76,128.75,0.063]
[1742544650063,22.60258477,128.76,128.75,0.063]
[1742544650361,0.28432314,128.75,128.71,0.063]
[1742544650567,14.38351987,128.72,128.71,0.063]
[1742544651868,22.15231987,128.72,128.71,0.063]
[1742544653652,41.57431987,128.72,128.69,0.063]
[1742544653858,22.15351987,128.7,128.69,0.063]
[1742544654255,20.0,128.67,128.66,0.063]
[1742544654459,14.38351987,128.67,128.66,0.063]
[1742544657873,14.53320957,128.67,128.66,0.063]
[1742544660281,22.30500957,128.67,128.66,0.063]
[1742544660477,158.40500957,128.67,128.66,0.063]
[1742544661957,136.24216157,128.66,128.62,0.063]
[1742544662172,34.38351987,128.63,128.62,0.063]
[1742544662676,14.38351987,128.63,128.62,0.063]
[1742544663175,150.48351987,128.64,128.62,0.063]
[1742544665176,14.38351987,128.63,128.62,0.063]
[1742544666180,14.38351987,128.64,128.62,0.063]
[1742544667263,150.48351987,128.66,128.62,0.063]
[1742544667466,14.38351987,128.66,128.62,14.44651987]
[1742544667679,14.53320957,128.67,128.62,14.44651987]
[1742544669275,14.53320957,128.67,128.63,7.7742]
[1742544670885,22.30510957,128.67,128.63,7.7742]
[1742544673863,22.30510957,128.67,128.62,22.22101987]
[1742544674786,14.38351987,128.66,128.62,22.22101987]
[1742544674985,14.38351987,128.66,128.62,0.063]
[1742544675471,22.15591987,128.66,128.62,0.063]
[1742544676192,14.38351987,128.66,128.62,0.063]
[1742544676593,14.53320957,128.67,128.63,6.64]
[1742544677089,0.1496897,128.67,128.63,14.4137]
[1742544677291,14.38351987,128.67,128.63,14.4137]
[1742544677776,0.15120224,128.64,128.63,14.4137]
[1742544678177,0.15120224,128.64,128.63,6.64]
[1742544680475,22.30832211,128.64,128.63,6.64]
[1742544680678,22.30832211,128.64,128.62,0.063]
[1742544680880,14.38351987,128.63,128.62,0.063]
[1742544681275,22.15771987,128.63,128.62,0.063]
[1742544681682,41.23385344,128.63,128.62,0.063]
[1742544681893,47.87385344,128.63,128.62,0.063]
[1742544682396,18.933972,128.62,128.58,0.063]
[1742544682582,14.38351987,128.59,128.58,0.063]
[1742544683195,22.16011987,128.59,128.58,0.063]
[1742544683585,14.38351987,128.59,128.58,0.063]
[1742544683785,22.15971987,128.6,128.58,0.063]
[1742544684186,14.38351987,128.59,128.58,0.063]
[1742544685786,158.25961987,128.6,128.58,0.063]
[1742544686398,14.38351987,128.59,128.58,0.063]
[1742544687700,22.16011987,128.59,128.58,0.063]
[1742544688592,22.16011987,128.59,128.54,7.50560001]
[1742544688794,14.38351987,128.56,128.53,0.063]
[1742544689587,14.38351987,128.57,128.53,0.063]
[1742544689800,14.38351987,128.57,128.53,7.8431]
[1742544690908,14.38351987,128.58,128.53,22.22661987]
[1742544691705,22.16071987,128.58,128.53,22.22661987]
[1742544692281,14.38351987,128.58,128.53,22.22661987]
[1742544692503,136.1,128.59,128.54,14.38351987]
[1742544692785,158.25971987,128.6,128.54,14.38351987]
[1742544693003,14.38351987,128.59,128.54,14.38351987]
[1742544693806,158.25971987,128.6,128.55,22.16251987]
[1742544694005,150.48351987,128.6,128.55,22.16251987]
[1742544694193,158.25951987,128.6,128.55,22.16251987]
[1742544694392,14.38351987,128.59,128.54,22.16291987]
[1742544694904,14.38351987,128.58,128.54,7.7794]
[1742544695809,14.38351987,128.58,128.53,22.22651987]
[1742544695991,22.16121987,128.58,128.53,22.22651987]
[1742544697708,0.15680889,128.54,128.53,22.36868144]
[1742544697894,0.15680889,128.54,128.53,0.063]
[1742544698609,0.15680889,128.54,128.53,7.8432]
[1742544699526,0.15680889,128.54,128.53,0.063]
[1742544701014,0.15680889,128.54,128.53,14.44651987]
[1742544701914,0.15680889,128.54,128.53,0.063]
[1742544703395,0.15680889,128.54,128.53,14.44651987]
[1742544704013,0.15680889,128.54,128.53,22.22671987]
[1742544704511,0.15680889,128.54,128.53,7.8432]
[1742544706009,0.15680889,128.54,128.53,22.22671987]
[1742544706492,0.15680889,128.54,128.53,7.8432]
[1742544708618,0.15680889,128.54,128.53,0.063]
[1742544709614,0.15680889,128.54,128.53,7.8432]
[1742544710017,0.15680889,128.54,128.53,0.063]
[1742544711417,0.15680889,128.54,128.53,14.44651987]
[1742544713019,0.15680889,128.54,128.53,22.22671987]
[1742544715122,0.18680889,128.54,128.53,22.22671987]
[1742544715823,0.18680889,128.54,128.53,22.36888144]
[1742544717224,0.03,128.54,128.53,22.36888144]
[1742544717718,0.199909,128.54,128.53,22.36888144]
[1742544719226,0.199909,128.54,128.53,22.22671987]
[1742544719536,9e-06,128.54,128.53,41.44501501]
[1742544719733,9e-06,128.54,128.53,47.63141501]
[1742544720118,9e-06,128.54,128.53,33.24789514]
[1742544720428,9e-06,128.54,128.53,47.63141501]
[1742544721233,9e-06,128.54,128.53,8.12752314]
[1742544721434,9e-06,128.54,128.53,22.51104301]
[1742544727129,0.030009,128.54,128.53,22.51104301]
[1742544730325,0.030009,128.54,128.53,41.44501501]
[1742544737238,0.03,128.54,128.53,41.44501501]
[1742544737820,0.19304714,128.54,128.53,41.44501501]
[1742544744047,0.19304714,128.54,128.53,22.36888144]
[1742544744242,0.19304714,128.54,128.53,0.063]
[1742544744827,7.97264714,128.54,128.53,0.063]
[1742544745029,22.35616701,128.54,128.53,0.063]
[1742544745745,23.86696701,128.54,128.53,0.063]
[1742544746051,159.96696701,128.54,128.53,0.063]
[1742544746251,159.96696701,128.54,128.52,0.063]
[1742544746252,179.04310058,128.54,128.52,0.063]
[1742544746440,33.31749187,128.53,128.5,0.063]
[1742544746626,22.16491987,128.51,128.5,0.063]
[1742544746832,158.26491987,128.51,128.5,0.063]
[1742544747026,177.19889187,128.51,128.5,0.063]
[1742544748322,41.24105344,128.51,128.5,0.063]
[1742544748930,144.16642314,128.5,128.49,0.063]
[1742544749150,158.54994301,128.5,128.49,0.063]
[1742544749833,150.48351987,128.5,128.49,0.063]
[1742544751141,136.1,128.5,128.49,0.063]
[1742544751346,15.89431987,128.51,128.49,0.063]
[1742544751748,20.81821987,128.52,128.49,0.063]
[1742544752049,14.38351987,128.52,128.49,0.063]
[1742544753963,136.1,128.53,128.5,14.38351987]
[1742544754254,0.19304714,128.54,128.5,14.38351987]
[1742544754462,0.19304714,128.54,128.52,14.38351987]
[1742544754669,0.19304714,128.54,128.53,14.38351987]
[1742544755038,0.19304714,128.54,128.53,21.16568144]
[1742544755240,0.19304714,128.54,128.53,28.94588144]
[1742544757269,0.03,128.54,128.53,28.94588144]
[1742544757954,0.18140557,128.54,128.53,28.94588144]
[1742544759152,0.18140557,128.54,128.53,6.64]
[1742544759552,0.18140557,128.54,128.51,6.64]
[1742544759958,14.56492544,128.54,128.51,6.64]
[1742544760566,22.34462544,128.54,128.49,22.37108144]
[1742544760750,22.34462544,128.54,128.49,14.44651987]
[1742544760949,14.38351987,128.52,128.49,6.703]
[1742544762063,22.16411987,128.53,128.49,6.703]
[1742544762873,136.28140557,128.54,128.5,14.38351987]
[1742544763362,136.28140557,128.54,128.51,14.38351987]
[1742544763758,136.28140557,128.54,128.5,22.30728144]
[1742544764663,0.18140557,128.54,128.5,22.30728144]
[1742544765360,0.18140557,128.54,128.51,14.38351987]
[1742544766366,0.18140557,128.54,128.51,22.16471987]
[1742544767566,0.18140557,128.54,128.53,14.38351987]
[1742544767771,0.18140557,128.54,128.53,21.02351987]
[1742544768350,0.18140557,128.54,128.53,28.80371987]
[1742544768870,0.18140557,128.54,128.53,28.94588144]
[1742544769955,0.18140557,128.54,128.53,47.73769187]
[1742544771654,0.18140557,128.54,128.53,21.16568144]
[1742544772370,0.18140557,128.54,128.53,6.78216157]
[1742544772571,0.18140557,128.54,128.53,14.56236157]
[1742544773284,0.18140557,128.54,128.53,28.94588144]
[1742544774373,0.18140557,128.54,128.53,6.64]
[1742544777277,0.03,128.54,128.53,6.64]
[1742544777473,0.03,128.54,128.53,28.94588144]
[1742544777869,0.195861,128.54,128.53,28.94588144]
[1742544779683,0.195861,128.54,128.53,6.78216157]
[1742544780665,0.195861,128.54,128.53,28.94588144]
[1742544782487,0.195861,128.54,128.53,14.56236157]
[1742544782784,0.195861,128.54,128.53,14.4202]
[1742544783184,0.195861,128.54,128.53,28.94588144]
[1742544784487,0.195861,128.54,128.53,28.80371987]
[1742544785070,0.195861,128.54,128.53,14.4202]
[1742544785993,0.195861,128.54,128.53,28.80371987]
[1742544786789,0.195861,128.54,128.53,14.4202]
[1742544793185,0.195861,128.54,128.53,6.64]
[1742544794392,0.195861,128.54,128.53,67.73769187]
[1742544796097,0.195861,128.54,128.53,47.73769187]
[1742544796497,0.195861,128.54,128.53,6.64]
[1742544797279,0.03,128.54,128.53,6.64]
[1742544797910,0.19057628,128.54,128.53,6.64]
[1742544799794,7.97017628,128.54,128.53,6.64]
[1742544799976,0.19057628,128.54,128.53,6.64]
[1742544801484,7.97017628,128.54,128.53,6.64]
[1742544801974,22.35369615,128.54,128.53,6.64]
[1742544802284,22.35369615,128.54,128.5,0.20516157]
[1742544802482,14.38351987,128.53,128.5,0.063]
[1742544802680,7.97017628,128.54,128.5,6.703]
[1742544802681,14.38351987,128.52,128.5,6.703]
[1742544802882,14.38351987,128.52,128.5,0.063]
[1742544804386,7.7811,128.52,128.5,0.063]
[1742544804590,15.97461987,128.53,128.5,0.063]
[1742544804795,23.75511987,128.53,128.5,0.063]
[1742544805075,0.19057628,128.54,128.5,14.58868144]
[1742544805475,0.19057628,128.54,128.51,14.38351987]
[1742544806791,0.19057628,128.54,128.52,7.7808]
[1742544810686,0.19057628,128.54,128.53,6.64]
[1742544810913,0.19057628,128.54,128.53,28.94588144]
[1742544811207,0.19057628,128.54,128.53,67.73769187]
[1742544816308,0.19057628,128.54,128.53,68.02201501]
[1742544817215,0.03,128.54,128.53,68.02201501]
[1742544817793,0.19521327,128.54,128.53,67.73769187]
[1742544827648,0.19521327,128.54,128.51,14.38351987]
[1742544827968,0.19521327,128.54,128.51,6.64]
[1742544828311,7.97491327,128.54,128.51,6.64]
[1742544829325,22.35843314,128.54,128.51,6.64]
[1742544830523,14.38351987,128.53,128.5,0.063]
[1742544831432,7.7808,128.52,128.5,0.063]
[1742544832211,22.16431987,128.52,128.5,0.063]
[1742544832416,14.38351987,128.51,128.5,0.063]
[1742544833311,14.38351987,128.52,128.5,0.063]
[1742544833528,0.19521327,128.54,128.5,14.44651987]
[1742544834345,14.57873314,128.54,128.5,0.063]
[1742544834535,22.35843314,128.54,128.5,0.063]
[1742544835644,0.19521327,128.54,128.5,14.44651987]
[1742544836545,0.19521327,128.54,128.51,6.64]
[1742544837340,0.03,128.54,128.51,6.64]
[1742544837518,0.03,128.54,128.51,28.80451987]
[1742544837851,0.14439518,128.53,128.52,0.14216157]
[1742544838015,0.19169331,128.54,128.53,0.14216157]
[1742544838348,0.19169331,128.54,128.53,14.52568144]
[1742544838942,0.19169331,128.54,128.53,22.30588144]
[1742544839139,0.19169331,128.54,128.53,61.09769187]
[1742544839640,0.19169331,128.54,128.53,61.38201501]
[1742544841531,9.331e-05,128.54,128.53,61.38201501]
[1742544845542,0.15113988,128.55,128.54,0.28432314]
[1742544845838,3.988e-05,128.55,128.54,42.95781501]
[1742544847436,0.16270602,128.56,128.55,20.0]
[1742544847631,0.16270602,128.56,128.55,41.02351987]
[1742544847826,0.16270602,128.56,128.55,48.80251987]
[1742544848028,0.16270602,128.56,128.55,67.45216873]
[1742544848334,0.16270602,128.56,128.55,67.87865344]
[1742544848537,0.16270602,128.56,128.55,68.02081501]
[1742544848723,0.14119737,128.57,128.56,19.21829514]
[1742544848922,0.19919573,128.59,128.57,20.28432314]
[1742544849119,4.012e-05,128.58,128.57,53.60181501]
[1742544849931,4.012e-05,128.58,128.57,61.37961501]
[1742544851027,4.012e-05,128.58,128.57,53.60181501]
[1742544851242,4.012e-05,128.58,128.57,60.24181501]
[1742544851441,4.012e-05,128.58,128.57,68.01961501]